Cogmind - Beta 10.2 @@@ ROGUE MODE // 2021.11.14 @ 20:53:37 Player: Marco Result: Destroyed by G-34 Mercenary with Small Laser Performance ------------- Evolutions (0) 0 Regions Visited (1) 200 Robots Destroyed (5) 25 Value Destroyed (60) 60 Prototype IDs (0) 0 Alien Tech Used (0) 0 Bonus (0) 0 TOTAL SCORE: 285 Bonus ------- None Cogmind --------- Core Integrity 0/250 Matter 300/300 Energy 100/100 System Corruption 0% Temperature Cool (6) Movement Core (300) Ox5 Location -10/Materials Parts ------- > --- POWER (1) -------- (None) > --- PROPULSION (2) --- (None) > --- UTILITY (2) ------ Large Storage Unit > --- WEAPON (2) ------- Medium Laser > --- INVENTORY (10) --- Light Ion Engine Aluminum Leg Peak State ------------ > --- POWER ------------ Light Ion Engine > --- PROPULSION ------- Aluminum Leg Aluminum Leg > --- UTILITY ---------- Small Storage Unit Large Storage Unit > --- WEAPON ----------- EM Pulse Gun Assault Rifle > --- INVENTORY -------- Light Ion Engine Light Treads Light Treads Aluminum Leg Medium Laser [Rating: 7] Favorites ----------- Power Light Ion Engine Engine Light Ion Engine Propulsion Light Treads Treads Light Treads Leg Aluminum Leg Utility Large Storage Unit Storage Large Storage Unit Weapon EM Pulse Gun Energy Gun EM Pulse Gun Ballistic Gun Assault Rifle Special Melee Weapon Datajack Build | -11 -10 ------- Run | Scr Mat Slots Evolved . | . . Power . | . . Propulsion . | . . Utility . | . . Weapon . | . . Parts Attached 12 | 6 6 Power 2 | 1 1 Engine 2 | 1 1 Core . | . . Reactor . | . . Propulsion 4 | 2 2 Treads 2 | . 2 Leg 2 | 2 . Wheel . | . . Hover . | . . Flight . | . . Utility 2 | 1 1 Device . | . . Storage 2 | 1 1 Processor . | . . Hackware . | . . Protection . | . . Artifact . | . . Weapon 4 | 2 2 Energy Gun 2 | 1 1 Energy Cannon . | . . Ballistic Gun 1 | 1 . Ballistic Cannon . | . . Launcher . | . . Special Weapon . | . . Impact Weapon . | . . Slashing Weapon . | . . Piercing Weapon . | . . Special Melee Weapon 1 | . 1 Unidentified Prototypes . | . . Parts Lost 5 | . 5 Power 1 | . 1 Propulsion 2 | . 2 Utility . | . . Weapon 2 | . 2 Highest Loss Streak 5 | . 5 Average Slot Usage (%) 81 | . 81 Engine 12 | . 12 Treads 19 | . 19 Leg 6 | . 6 Storage 15 | . 15 Energy Gun 15 | . 15 Ballistic Gun 9 | . 9 Naked Turns . | . . Heaviest Build 27 | 13 27 Greatest Support 40 | 20 40 Greatest Overweight (x) 6 | 2 6 Average Overweight (x) . | . . Largest Inventory Capacity 12 | 6 12 Average Capacity 8 | 5 9 Most Carried 6 | 6 6 Average Carried 2 | 3 2 Final Capacity 10 | 6 10 Final Carried 3 | 3 2 Class Distribution -------------------- 100% | Mutant Dominant Class ---------------- Mutant | -10/Materials Resources | -11 -10 ----------- Run | Scr Mat Matter Collected 309 | 249 60 Remotely . | . . Salvage Created 76 | . 76 Parts 9 | . 9 Haulers Intercepted . | . . Recyclers Shooed . | . . Parts Field Recycled . | . . Retrieved Matter . | . . Parts Self-Destructed . | . . Prevented . | . . Kills | -11 -10 ------- Run | Scr Mat Combat Hostiles Destroyed 5 | . 5 Guns 3 | . 3 AOE 2 | . 2 Classes Destroyed 1 | . 1 Swarmer 5 | . 5 Best Kill Streak 3 | . 3 Combat Bots Only 3 | . 3 Max Kills in Single Turn 2 | . 2 Gunslinging 1 | . 1 Exploded 1 | . 1 Melee . | . . Uniques/NPCs Destroyed . | . . Combat | -11 -10 -------- Run | Scr Mat Damage Taken 837 | . 837 Core 259 | . 259 Absorbed by Shields . | . . Core Remaining (%) 100 | 100 . Volleys Fired 27 | . 27 Largest 2 | . 2 Hottest 90 | . 90 Shots Fired 42 | . 42 Gun 42 | . 42 Cannon . | . . Launcher . | . . Special . | . . Kinetic 11 | . 11 Thermal 16 | . 16 Explosive . | . . Electromagnetic 15 | . 15 Robot Hit Streak 4 | . 4 Robot Miss Streak 3 | . 3 Penetration Max . | . . Secondary Targets 1 | . 1 Max Gunslinging Chain 1 | . 1 Shots Hit Robots 28 | . 28 Core Hits 7 | . 7 Critical Hits . | . . Critical Kills . | . . Critical Parts Destroyed . | . . Melee Attacks 2 | . 2 Impact . | . . Slashing . | . . Piercing . | . . Sneak Attacks . | . . Combat Hostiles . | . . Follow-up Attacks . | . . Damage Inflicted 511 | . 511 Guns 308 | . 308 Cannons . | . . Explosions 176 | . 176 Melee . | . . Ramming 27 | . 27 Kinetic 37 | . 37 Thermal 341 | . 341 Explosive . | . . Electromagnetic 106 | . 106 Impact . | . . Slashing . | . . Piercing . | . . Highest Corruption . | . . Average Corruption . | . . Corruption Purged . | . . Overload Shots . | . . Overflow Damage 32 | . 32 Projectiles . | . . Explosions 32 | . 32 Melee . | . . Knockbacks . | . . Impact . | . . Kinetic . | . . Secondary . | . . Self-Inflicted Damage 83 | . 83 Shots 3 | . 3 Rammed 8 | . 8 Targets Rammed 8 | . 8 Kicked . | . . Crushed . | . . Highest Temperature 310 | . 310 Average Temperature 131 | . 131 Received Heat Transfer 270 | . 270 Siege Activations . | . . Robots Corrupted . | . . Combat Hostiles . | . . Parts Fried . | . . Impact Corruptions . | . . Robots Melted . | . . Combat Hostiles . | . . Parts Melted . | . . Heat Transferred 731 | . 731 Parts Sabotaged . | . . Parts Stolen . | . . Parts Stripped . | . . Power Chain Reactions 3 | . 3 Missiles Intercepted . | . . Alert | -11 -10 ------- Run | Scr Mat Peak Influence 170 | . 170 Initial . | . . Average 73 | . 85 Maximum Alert Level . | . . Low Security (%) 100 | 100 100 Level 1 . | . . Level 2 . | . . Level 3 . | . . Level 4 . | . . Level 5 . | . . High Security . | . . Max Security . | . . Squads Dispatched 1 | . 1 Investigation . | . . Extermination . | . . Reinforcement 1 | . 1 Assault . | . . Garrison . | . . Intercept . | . . Construction Impeded . | . . Haulers Reinforced . | . . Stealth | -11 -10 --------- Run | Scr Mat Distress Signals . | . . Communications Jammed . | . . Distress Signals . | . . Times Spotted 13 | . 13 Peak Tracking Total 3 | . 3 Tactical Retreats 3 | . 3 Traps | -11 -10 ------- Run | Scr Mat Traps Triggered . | . . Indirectly . | . . Trap Hack Attempts . | . . Triggered . | . . Disarmed . | . . Reprogrammed . | . . Reused . | . . Traps Extracted . | . . Installed . | . . Triggered . | . . Machines | -11 -10 ---------- Run | Scr Mat Machines Disabled 1 | . 1 Max in Single Turn 1 | . 1 Machines Sabotaged . | . . Garrisons Compromised . | . . Overloaded Fab Kills . | . . Fab Network Shutdowns . | . . Hacking | -11 -10 --------- Run | Scr Mat Machines Accessed . | . . Terminals . | . . Fabricators . | . . Repair Stations . | . . Recycling Units . | . . Scanalyzers . | . . Garrison Access . | . . Total Hacks . | . . Successful . | . . Failed . | . . Catastrophic . | . . Database Lockouts . | . . Manual . | . . Terminals . | . . Fabricators . | . . Repair Stations . | . . Recycling Units . | . . Scanalyzers . | . . Garrison Access . | . . Terminal Hacks . | . . Fabricator Hacks . | . . Repair Station Hacks . | . . Recycling Unit Hacks . | . . Scanalyzer . | . . Garrison Access Hacks . | . . Unauthorized Hacks . | . . Terminals . | . . Fabricators . | . . Repair Stations . | . . Recycling Units . | . . Scanalyzers . | . . Garrison Access . | . . Data Cores Recovered . | . . Used . | . . Hacking Detections . | . . Full Trace Events . | . . Feedback Events . | . . Feedback Blocked . | . . Robot Schematics Acquired . | . . Robots Built . | . . Matter . | . . Time . | . . Total Robot Build Rating . | . . Part Schematics Acquired . | . . Parts Built . | . . Matter . | . . Time . | . . Total Part Build Rating . | . . Parts Repaired . | . . Time . | . . Parts Recycled . | . . Recycled Matter . | . . Retrieved Matter . | . . Retrieved Components . | . . Parts Scanalyzed . | . . Part Schematics Acquired . | . . Parts Damaged . | . . Bothacking | -11 -10 ------------ Run | Scr Mat Used RIF Installer . | . . Robots Hacked . | . . Non-combat . | . . Combat . | . . Robot Hacks Applied . | . . Relay Couplers Released . | . . Robots Rewired . | . . Allies Hacked . | . . Hacks Repelled . | . . Allies | -11 -10 -------- Run | Scr Mat Total Allies . | . . Largest Group . | . . Highest-Rated Group . | . . Highest-Rated Ally . | . . Total Orders . | . . Ally Attacks . | . . Total Damage . | . . Kills . | . . Allies Corrupted . | . . Allies Melted . | . . Intel | -11 -10 ------- Run | Scr Mat Robot Analysis Total . | . . Derelict Logs Recovered . | . . Drone Launches . | . . Drone Recoveries . | . . Exploration | -11 -10 ------------- Run | Scr Mat Turns Passed 437 | 59 378 Spaces Moved 240 | 53 187 Core 39 | 38 1 Treads 124 | . 124 Legs 77 | 15 62 Wheels . | . . Hover . | . . Flight . | . . Fastest Speed 50 | 50 120 Average Speed 134 | 86 147 Slowest Speed 350 | 150 350 Overloaded Moves . | . . Propulsion Burnouts . | . . Robots Hopped . | . . Cave-ins Triggered . | . . Exploration Rate (%) 15 | 3 27 Regions Visited 1 Branch Regions . Pre-discovered Areas . | . . Known Exits Taken . | . . Unknown Exits Taken 1 | 1 . Scrap Searched . | . . Spaces Dug . | . . Terrain Destroyed 8 | . 8 Melee . | . . Projectile . | . . AOE 8 | . 8 Terrain Rammed . | . . Walls Destroyed . | . . Machines Disabled . | . . Actions | -11 -10 --------- Run | Scr Mat Total 304 | 64 240 Wait 1 | . 1 Move 239 | 52 187 Hop . | . . Pick Up 10 | 6 4 Fast Attach 4 | 3 1 Attach 8 | 3 5 Detach . | . . Swap . | . . Drop 5 | . 5 Fire 27 | . 27 Melee 2 | . 2 Ram 3 | . 3 Kick . | . . Crush 5 | . 5 Escape Stasis . | . . Rewire . | . . Trap . | . . Miscellaneous . | . . Route ------- -11/Scrapyard -10/Materials History --------- Turn | Location | Event 12 | -11/Scrapyard | Discovered new exit (range 13) 60 | -11/Scrapyard | Entered Materials 305 | -10/Materials | Build established: Mutant 366 | -10/Materials | Core integrity fell below 50% 411 | -10/Materials | Core integrity fell below 20% 438 | -10/Materials | Destroyed by G-34 Mercenary with Small Laser Last Messages --------------- 00331_ U-05 Engineer builds a Wall. 00332_ Slammed into U-05 Engineer. 00339_ U-05 Engineer lays Concrete. 00340_ U-05 Engineer builds a Wall. 00342_ U-05 Engineer lays Concrete. 00343_ U-05 Engineer builds a Wall. 00359_ Door malfunctions. 00373_ EM Pulse Gun destroyed. 00374_ K-01 Serf collects debris. 00380_ U-05 Engineer repairs door. 00384_ K-01 Serf collects debris. 00396_ Slammed into G-34 Mercenary. 00398_ Lgt. Ion Engine destroyed. 00404_ Lgt. Treads destroyed. 00413_ G-34 Mercenary misfires. 00419_ Acquired Datajack. 00422_ G-34 Mercenary misfires. 00424_ Lgt. Treads destroyed. 00430_ Datajack destroyed. 00432_ Slammed into G-34 Mercenary. Map ----- +----------------------------------------------------+ | ????????????????????????????????# ## ? | | ????????????????????????????????# #########?? | | ????????????????????????????????# #?????????? | | ????????????????????????????????# #?????????? | | ????????????????????????????????# #?????????? | | ???????????????????????????????##+#####?????? | | ???????????????????????????????# #?????? | | ???????????????????????????????# #?????? | | ???????????????????????????????# #?????? | | ???????????????????????????????# " % #?????? | | ???????????????????????????????#""" #?????? | | ???????????????????????????????#""" #?????? | | ???????????????????????????????#""" #?????? | | ???????????????????????????????# "" #?????? | | ???????????????????????????????#""" ####### | | ???????????????????????????????#"" # # | | ??????????????????????#######??#"" # = # | | ??????????????????????# #??# " # # | | ??????????????????????# """ #??# # # | | ??????????????????????# "R" #######+### # | | ??????????????????????# " " ## # """ # | | ??????????????????????# ## + """ # | | ??????????????????????# !## # """ # | | ??????????????????????# ## #### # """ # | | ??????????????????????###/#### #??# # """ # | | ????????????????????????#@#??#####??# # # | | ????????????????????????#g#?????????# # # | | ????????????????????#???#g########### # "#### | | ????????????????????# ??# = [ #?? | | ????????????????????#/###+############ #?? | | ????????????????????# #???# [ # | | ????????????????????# ===#???# # | | ????????????????????# ===#???# " # | | ????????????????????# == #???# # | | ????????????????????###########???########### | | | | | | | | | | | | | | | | | | | | | | | | | | | | | | | +----------------------------------------------------+ Best States ------------- Heat Dissipation 25 Energy Generation 10 Energy Capacity 250 Matter Stores 300 Matter Capacity 300 Sight Range 16 Terrain Scan Density 10 Evasion (%) 50 Recoil Reduction 2 Item Schematics ----------------- None Robot Schematics ------------------ None Fabricated ------------ Nothing Alien Tech Used ----------------- None Achievements -------------- None Challenges ------------ None Game ------ Seed MakeshiftCryofiberChip Manual? 0 Play Time 00:06:52 Cumulative 8.3 hours Start 2021.11.14 @ 20:49:53 End 2021.11.14 @ 20:53:37 Sessions 1 Manual Loads 0 Difficulty Rogue Special Mode None Game No. 22 Rogue 17 Adventurer 5 Explorer 0 Win Type - Total 0 Types 0/0/0/0/0/0/0/0/0 Lore% 14 Gallery% 18 Achievement% 12 Wizard Run 0 Options --------- ASCII 0 Keyboard 0 Movement Mouse Keybinds 1 Fullscreen 1 Font 24/Smallcaps Map View 76x50 Tactical HUD 1 Map Filters NONE Filters NONE Steam 1 RUN: 5a6f6389-0714-4caf-8bb5-e073bd4d3fc6